bitfinex/quotes_ETHUSD_20260312
["timestamp","ask_amount","ask_price","bid_price","bid_amount"]
[1773273991647,0.67748973,2051.2,2050.8,1.21903647]
[1773273992051,1.8962124,2051.4,2050.9,0.34074028]
[1773273992779,0.67748973,2051.3,2050.9,1.5597095]
[1773273993276,0.67748973,2051.3,2050.9,0.34074028]
[1773273993477,0.67748973,2051.3,2050.8,1.55821087]
[1773273994591,0.67748973,2051.3,2050.9,0.33770491]
[1773273994793,0.67748973,2051.3,2051.0,1.2189176]
[1773273995292,1.21862339,2051.5,2051.0,1.2189176]
[1773273995293,1.89611312,2051.5,2051.0,1.55510735]
[1773273996184,0.67748973,2051.4,2051.0,1.55510735]
[1773273997689,0.67748973,2051.4,2051.1,0.3331749]
[1773273998264,0.67748973,2051.4,2051.0,1.55059061]
[1773273998664,1.89708432,2051.6,2051.1,0.33167301]
[1773273999494,0.001,2051.6,2051.3,0.33017179]
[1773274001497,0.65787006,2051.6,2051.2,1.54591168]
[1773274001701,0.001,2051.6,2051.3,0.32711293]
[1773274002106,0.65787006,2051.6,2051.2,1.21879875]
[1773274002407,0.65687006,2051.5,2050.8,1.21899265]
[1773274002574,0.65687006,2051.5,2050.7,1.21905549]
[1773274003904,0.65687006,2051.3,2051.0,0.0011]
[1773274004979,0.65687006,2051.3,2050.8,0.0011]
[1773274005180,0.65687006,2051.3,2050.5,0.0011]
[1773274006106,0.65687006,2051.1,2050.5,0.0011]
[1773274007011,0.65687006,2051.0,2050.5,0.0011]
[1773274008682,0.65687006,2050.8,2050.5,0.0011]
[1773274011211,1.21909591,2050.7,2050.5,0.0011]
[1773274011380,1.86922898,2050.7,2050.5,0.0011]
[1773274012208,0.65013307,2051.2,2050.5,0.0011]
[1773274012413,0.65013307,2051.1,2050.5,0.0011]
[1773274013289,0.65013307,2050.9,2050.5,0.0011]
[1773274013493,0.65013307,2050.9,2050.1,1.52998685]
[1773274014507,0.65013307,2050.9,2050.1,1.52967978]
[1773274015581,0.65013307,2050.7,2050.1,1.52967978]
[1773274016197,0.65013307,2050.7,2050.2,0.30737899]
[1773274016516,1.86914927,2050.9,2050.2,0.30737899]
[1773274016711,1.86914927,2050.9,2050.7,0.0011]
[1773274016911,0.65013307,2050.9,2050.7,0.0011]
[1773274017408,1.86913026,2050.9,2050.7,0.0011]
[1773274019819,0.65013307,2050.9,2050.7,0.0011]
[1773274020193,1.86911453,2050.9,2050.7,0.0011]
[1773274024121,0.65013307,2050.8,2050.7,0.0011]
[1773274024342,0.65013307,2050.8,2050.2,0.0011]
[1773274025657,0.65013307,2050.6,2050.2,0.0011]
[1773274027867,1.86934789,2050.5,2050.2,0.0011]
[1773274028468,0.65013307,2050.5,2050.2,0.0011]
[1773274029571,0.65013307,2050.5,2050.4,0.0011]
[1773274030782,1.86934789,2050.5,2050.4,0.0011]
[1773274032958,0.65013307,2050.5,2050.4,0.0011]
[1773274033889,1.22020099,2050.6,2050.4,0.28424285]
[1773274033890,0.001,2050.6,2050.4,0.28424285]
[1773274034782,1.86907609,2051.0,2050.5,1.50096422]
[1773274034981,1.86907609,2051.0,2050.6,0.2807494]
[1773274035483,0.65013307,2050.9,2050.6,0.2807494]
[1773274035656,1.21893362,2051.0,2050.6,0.2807494]
[1773274035872,1.86906669,2051.0,2050.6,0.2807494]
[1773274037699,0.65013307,2050.9,2050.6,0.2807494]
[1773274039167,1.86914543,2050.9,2050.6,0.2807494]
[1773274043103,1.86914543,2050.9,2050.4,0.0011]
[1773274043316,1.86914543,2050.9,2050.8,0.0011]
[1773274043693,0.69482355,2050.8,2050.5,0.0011]
[1773274044009,0.69482355,2050.4,2050.2,0.0011]
[1773274044981,0.69482355,2050.4,2049.8,0.0011]
[1773274045187,1.87996647,2050.5,2049.5,0.0011]
[1773274045188,0.69427355,2050.2,2049.5,0.0011]
[1773274045426,0.69427355,2050.0,2049.5,0.0011]
[1773274045993,0.69427355,2049.8,2049.5,0.0011]
[1773274047053,1.21957168,2049.9,2049.5,0.0011]
[1773274047516,1.91382428,2050.0,2049.5,0.0011]
[1773274047726,0.69427355,2049.9,2049.5,0.0011]
[1773274048226,1.91390473,2049.8,2049.5,0.0011]
[1773274048722,0.69427355,2049.7,2049.5,0.0011]
[1773274049224,1.21963118,2049.8,2049.5,0.0011]
[1773274050091,4.87816124,2050.0,2049.5,0.0011]
[1773274050287,0.69427355,2050.1,2049.5,0.0011]
[1773274050720,1.21945527,2050.1,2049.5,0.0011]
[1773274053016,1.21945527,2050.1,2049.5,1.2209097]
[1773274053921,1.91372882,2050.1,2049.5,1.2209097]
[1773274055020,0.69427355,2050.1,2049.5,1.2209097]
[1773274055209,1.91374222,2050.1,2049.5,1.2209097]
[1773274056513,0.69427355,2050.0,2049.7,0.0011]
[1773274057909,0.69427355,2049.9,2049.7,0.0011]
[1773274058423,0.69427355,2050.2,2049.7,0.0011]
[1773274060321,1.2194527,2050.1,2049.7,0.0011]
[1773274061124,0.69427355,2050.0,2049.7,0.0011]
[1773274062712,0.69427355,2049.8,2049.2,0.0011]
[1773274064624,0.69427355,2050.0,2049.2,1.65439612]
[1773274065710,0.69427355,2050.0,2049.3,15.473527]
[1773274066111,0.69427355,2050.2,2049.4,1.65329612]
[1773274066833,1.91366887,2050.2,2049.5,1.2198097]
[1773274067329,0.69427355,2050.1,2049.5,1.2198097]
[1773274068927,0.69427355,2050.0,2049.5,1.2198097]
[1773274069130,0.69427355,2050.0,2049.5,1.2209097]
[1773274069434,0.001,2049.9,2049.5,1.2209097]
[1773274069800,0.69427355,2049.8,2049.5,1.2209097]
[1773274070006,0.69427355,2049.8,2049.3,0.0011]
[1773274072235,1.91394735,2049.8,2049.3,1.2210207]
[1773274072416,1.91394735,2049.8,2049.3,0.0011]
[1773274072612,0.69427355,2049.7,2049.3,0.0011]
[1773274074836,0.69427355,2049.7,2049.2,3.08504279]
[1773274074837,0.69427355,2049.7,2049.2,0.0011]
[1773274075038,0.69427355,2049.5,2049.1,0.0041]
[1773274075406,0.69427355,2049.8,2049.1,0.0041]
[1773274077636,1.91396423,2049.7,2049.1,0.0041]
[1773274078939,0.69427355,2049.7,2049.1,0.0041]
[1773274079137,0.69427355,2049.7,2048.7,4.88090589]
[1773274079138,0.69427355,2049.7,2048.1,5.139]
[1773274079326,0.001,2049.9,2049.2,0.40061606]
[1773274079528,0.001,2049.9,2049.4,1.62047614]
[1773274080336,0.62137011,2050.5,2049.6,0.41616571]
[1773274080535,0.62137011,2050.5,2049.8,0.41616571]
[1773274081639,1.22012595,2050.7,2050.1,0.41535381]
[1773274081640,0.62237011,2050.7,2050.1,0.41535381]
[1773274082241,0.001,2050.7,2050.1,0.41535381]
[1773274082541,0.001,2050.3,2050.1,0.41535381]
[1773274083527,0.001,2050.7,2050.1,0.41535381]
[1773274084026,0.62237011,2050.7,2049.9,0.41282168]
[1773274084228,0.62237011,2050.7,2049.9,1.63238485]
[1773274085357,0.001,2050.7,2050.1,0.4119614]
[1773274085735,0.62237011,2050.7,2050.1,2.2719614]
[1773274086223,1.84147789,2050.7,2050.1,3.49137506]
[1773274086418,0.62137011,2050.6,2050.0,1.21946886]
[1773274086640,0.62137011,2050.6,2050.0,3.0805024]
[1773274086952,0.001,2050.7,2050.2,0.41023477]
[1773274089028,0.001,2050.7,2050.2,1.62962646]
[1773274090132,0.62237011,2050.7,2050.2,1.62962646]
[1773274091037,1.84147797,2050.7,2050.2,1.62962646]
[1773274093641,0.62237011,2050.7,2050.2,1.62962646]
[1773274096042,0.001,2050.5,2050.2,1.62962646]
[1773274097350,0.62237011,2050.5,2050.1,1.8711]
[1773274097550,0.62237011,2050.5,2050.1,3.49163073]
[1773274097753,1.84158611,2050.5,2050.1,2.27218053]
[1773274097953,0.62237011,2050.5,2050.1,2.27218053]
[1773274098265,1.84161315,2050.5,2050.1,2.27218053]
[1773274098571,0.62237011,2050.5,2050.1,3.49163213]
[1773274099661,0.62237011,2050.5,2050.1,2.27318053]
[1773274099662,1.8416082,2050.5,2050.1,2.27318053]
[1773274099868,0.62237011,2050.5,2050.1,2.27318053]
[1773274100071,0.62237011,2050.5,2050.1,3.49263275]
[1773274100274,0.001,2050.5,2050.2,0.39840173]
[1773274102050,4.87656875,2051.1,2050.5,0.39542393]
[1773274102051,0.67182077,2051.1,2050.5,0.39542393]
[1773274102237,0.001,2051.1,2050.7,0.39542393]
[1773274102564,0.001,2051.1,2050.8,1.871]
[1773274102770,0.67182077,2051.1,2050.8,1.871]
[1773274105662,0.67182077,2051.1,2050.8,3.09002393]
[1773274105976,0.67182077,2051.1,2050.8,1.871]
[1773274106166,0.67182077,2051.1,2050.8,3.09003484]
[1773274107470,0.001,2051.1,2050.8,3.48057127]
[1773274109578,0.001,2050.9,2050.8,3.48057127]
[1773274110549,0.001,2051.1,2050.9,0.38755472]
[1773274110946,0.001,2051.1,2050.8,3.47662489]
[1773274111375,0.001,2051.1,2050.9,0.38659005]
[1773274112668,0.001,2051.4,2050.9,0.38459511]
[1773274113179,0.67182077,2051.4,2051.0,1.60251666]
[1773274113991,0.67182077,2051.6,2051.2,0.38263026]
[1773274114354,0.67182077,2051.6,2051.3,1.872]
[1773274114750,0.67182077,2051.6,2051.2,1.872]
[1773274114751,0.67082077,2051.5,2051.2,1.872]
[1773274114989,0.67082077,2051.5,2051.0,1.60154786]
[1773274115197,0.67082077,2051.4,2051.1,1.872]
[1773274115491,0.67082077,2051.4,2050.8,0.38166282]
[1773274115654,0.67082077,2051.4,2050.9,1.872]
[1773274116562,0.67082077,2051.4,2050.9,2.25266501]
[1773274116776,0.67182077,2051.6,2051.0,0.38066501]
[1773274117586,0.67182077,2051.6,2051.1,1.59852396]
[1773274117890,0.67182077,2051.6,2051.2,0.37966579]
[1773274118688,1.89042773,2051.6,2051.2,0.37966579]
[1773274119790,0.67182077,2051.6,2051.2,0.37966579]
[1773274119973,0.67182077,2051.6,2051.2,1.59846344]
[1773274120885,0.67182077,2051.6,2051.2,0.37966579]
[1773274121064,0.62872225,2051.5,2051.1,1.21881657]
[1773274121590,0.62872225,2051.5,2051.0,1.59475742]
[1773274121981,0.62872225,2051.5,2051.4,0.0011]
[1773274124172,0.62972225,2051.6,2051.4,0.0011]
[1773274125704,0.001,2051.6,2051.4,0.0011]
[1773274125996,0.62972225,2051.6,2051.4,0.0011]
[1773274133502,0.6124683,2051.5,2051.1,0.0011]
[1773274135098,0.6124683,2051.4,2051.1,0.36428417]
[1773274135701,0.6134683,2051.4,2051.1,0.36428417]
[1773274136991,0.001,2051.4,2051.2,0.36117652]
[1773274140095,0.001,2051.4,2051.3,0.04152592]
[1773274142080,0.001,2051.4,2051.3,0.39767779]
[1773274144107,0.001,2051.4,2051.3,0.04152592]
[1773274144674,0.6134683,2051.4,2051.1,0.0011]
[1773274145116,0.6124683,2051.3,2051.1,0.0011]
[1773274145278,0.6124683,2051.3,2050.9,0.0011]
[1773274145679,0.6124683,2051.1,2050.9,0.0011]
[1773274146435,0.001,2051.4,2051.0,0.35447183]
[1773274148002,0.001,2051.4,2051.2,0.35246011]
[1773274148506,0.001,2051.4,2051.3,0.0011]
[1773274148905,0.001,2051.4,2051.3,0.35356011]
[1773274149906,0.001,2051.4,2051.3,1.57229944]
[1773274150203,0.001,2051.6,2051.3,1.57229944]
[1773274150893,0.001,2051.6,2051.4,0.34948104]
[1773274152390,0.001,2051.6,2051.4,1.56814897]
[1773274153803,1.2306913,2051.8,2051.6,0.34647238]
[1773274153804,0.618223,2051.8,2051.6,0.34647238]
[1773274154101,0.618223,2051.8,2051.5,1.56386025]
[1773274154307,0.618223,2051.8,2051.5,0.34524593]
[1773274154308,1.2306913,2051.8,2051.5,0.34524593]
[1773274154482,1.2306913,2051.8,2051.5,3.42686136]
[1773274154688,1.2306913,2051.8,2051.5,2.20824593]
[1773274154910,0.6124683,2051.7,2051.5,1.863]
[1773274155581,0.618223,2051.8,2051.5,1.863]
[1773274155781,1.2306913,2051.8,2051.5,1.863]
[1773274155993,1.2306913,2051.8,2051.5,2.20584209]
[1773274156195,1.2306913,2051.8,2051.5,3.42444029]
[1773274158019,0.618223,2051.8,2051.6,0.34041585]
[1773274158204,0.618223,2051.8,2051.7,1.21850173]
[1773274158525,0.001,2052.2,2051.8,0.34041585]
[1773274158708,0.001,2052.2,2051.9,1.00072824]
[1773274159023,0.001,2052.2,2052.0,2.22223591]
[1773274160024,0.001,2052.2,2052.0,1.865]
[1773274160598,0.69284604,2052.2,2051.8,1.866]
[1773274160819,0.65131997,2052.2,2051.8,1.866]
[1773274161126,0.001,2052.2,2051.9,1.01438763]
[1773274162026,0.65131997,2052.4,2052.0,0.35244322]
[1773274162210,0.65131997,2052.4,2052.1,0.65972754]
[1773274162404,0.65131997,2052.4,2052.1,1.21821203]
[1773274163810,4.87147463,2052.8,2052.4,0.3512262]
[1773274163811,0.65031997,2052.8,2052.4,0.3512262]
[1773274164124,0.65031997,2053.0,2052.5,2.21798264]
[1773274164516,0.65031997,2053.3,2052.8,1.00971018]
[1773274164827,0.65031997,2053.2,2052.6,2.22767763]
[1773274165612,0.65031997,2053.2,2052.6,1.56795009]
[1773274166715,0.65031997,2053.2,2052.7,0.34877213]
[1773274166902,0.65131997,2053.4,2052.7,0.34877213]
[1773274168729,0.65131997,2053.4,2052.8,1.56413815]
[1773274169123,0.65131997,2053.4,2052.9,0.34506181]
[1773274169641,0.65131997,2053.4,2053.0,1.87]
[1773274169825,0.65131997,2053.4,2053.0,2.21506181]
[1773274170209,0.65031997,2053.7,2053.1,0.62229866]
[1773274170403,0.65031997,2053.7,2053.2,0.62229866]
[1773274170610,0.65131997,2053.8,2053.2,0.62229866]
[1773274170925,0.65131997,2053.8,2053.3,1.21755223]
[1773274171331,0.65131997,2053.8,2053.3,1.83985089]
[1773274171529,0.65131997,2053.8,2053.4,0.62229866]
[1773274171530,0.001,2053.8,2053.4,0.62229866]
[1773274172439,0.001,2053.8,2053.5,1.87]
[1773274173210,0.001,2053.8,2053.5,3.08741873]
[1773274173725,0.001,2054.2,2053.8,0.62229866]
[1773274173925,0.001,2054.2,2053.5,6.38357233]
[1773274173926,0.65031997,2054.5,2054.1,1.6480768]
[1773274174228,0.65031997,2054.7,2054.1,4.14137546]
[1773274174671,0.65031997,2054.7,2054.1,3.5190768]
[1773274174948,0.65031997,2055.3,2054.6,1.6480768]
[1773274175241,0.65031997,2055.3,2054.8,13.61316766]
[1773274175412,0.65031997,2055.3,2054.8,0.62229866]
[1773274176722,0.65031997,2055.2,2054.8,1.871]
[1773274177118,0.65031997,2055.2,2054.7,1.21672263]
[1773274177318,0.65031997,2055.2,2054.7,3.08772263]
[1773274177528,1.47528813,2055.4,2054.8,9.879914]
[1773274178242,0.65031997,2055.1,2054.1,1.871]
[1773274178540,0.65031997,2054.7,2054.1,1.871]
[1773274178736,0.65031997,2054.7,2054.0,1.83939298]
[1773274178925,0.65031997,2054.7,2054.2,1.871]
[1773274179130,0.65031997,2054.7,2054.3,1.21695954]
[1773274179842,0.65031997,2054.6,2053.9,1.21719655]
[1773274180146,0.65031997,2054.6,2054.0,1.871]
[1773274180855,0.65031997,2054.6,2053.8,1.21721311]
[1773274181023,0.65031997,2054.6,2053.9,1.871]
[1773274181347,0.49256246,2054.5,2054.0,1.21713729]
[1773274181558,4.86618298,2055.0,2054.1,1.6480768]
[1773274181559,0.49256246,2055.0,2054.1,1.6480768]
[1773274181837,0.49256246,2055.0,2054.0,3.08913729]
[1773274182917,0.49256246,2055.0,2054.1,0.47769916]
[1773274183114,0.49256246,2055.0,2054.2,1.21701879]
[1773274183340,0.49256246,2054.9,2054.2,1.21701879]
[1773274185746,0.49256246,2054.8,2054.2,1.21701879]
[1773274186116,0.49256246,2054.8,2053.7,1.21731508]
[1773274186321,0.49256246,2054.8,2053.8,1.872]
[1773274187036,0.49356246,2054.8,2053.7,3.08431508]
[1773274187235,0.49256246,2054.6,2053.7,3.08431508]
[1773274187544,0.49256246,2054.6,2054.0,0.0011]
[1773274189221,0.49256246,2054.6,2054.0,1.21823729]
[1773274192064,0.49256246,2054.6,2054.0,1.68246656]
[1773274192524,0.49256246,2054.6,2054.0,1.21823729]
[1773274192720,0.45429095,2054.5,2054.0,1.21823729]
[1773274192928,0.45429095,2054.5,2054.0,0.0011]
[1773274193270,0.45429095,2054.7,2054.0,1.6491768]
[1773274193472,0.45429095,2054.7,2054.0,0.0011]
[1773274193887,0.45429095,2054.6,2054.0,0.0011]
[1773274196263,1.67107445,2054.6,2054.0,0.0011]
[1773274196464,0.45429095,2054.5,2054.0,0.0011]
[1773274196671,0.45429095,2054.7,2054.0,0.46532927]
[1773274198070,0.45429095,2054.7,2054.1,1.21707803]
[1773274198564,0.45429095,2054.6,2054.0,0.0011]
[1773274198738,0.45429095,2054.6,2054.0,3.0812139]
[1773274199683,0.45429095,2054.6,2054.0,1.8641]
[1773274199856,0.45429095,2054.6,2054.0,0.0011]
[1773274200169,0.45429095,2054.2,2053.7,0.0011]
[1773274202776,1.67131457,2054.2,2053.7,0.0011]
[1773274203177,0.45429095,2054.1,2053.7,0.0011]
[1773274203958,0.45429095,2054.3,2053.7,0.0011]
[1773274204186,0.001,2054.5,2053.7,0.46532927]
[1773274204379,0.001,2054.8,2054.2,2.11230607]
[1773274204549,0.001,2054.8,2054.2,3.97230607]
[1773274204877,0.001,2054.8,2054.3,1.21695954]
[1773274205264,0.001,2054.8,2054.3,1.68118881]
[1773274205576,0.001,2054.8,2054.4,2.11230607]
[1773274205954,0.001,2054.8,2054.5,0.46422927]
[1773274206155,0.45429095,2055.2,2054.6,2.11230607]
[1773274206352,0.45349095,2055.2,2054.6,0.46422927]
[1773274206575,1.27925911,2055.4,2054.7,0.46422927]
[1773274206774,0.45429095,2055.3,2054.8,1.21666342]
[1773274206959,0.45429095,2055.1,2054.1,0.46422927]
[1773274207277,0.45429095,2054.9,2053.8,3.07925581]
[1773274207477,0.45429095,2054.9,2053.8,3.52848508]
[1773274207769,0.45429095,2054.9,2053.9,0.46422927]
[1773274208744,0.45429095,2054.9,2053.9,2.31322927]
[1773274209151,0.45429095,2054.7,2054.0,1.21713729]
[1773274210377,0.45429095,2054.7,2054.1,1.6480768]
[1773274210556,0.45429095,2054.9,2054.3,0.46422927]
[1773274210757,0.45429095,2054.9,2054.2,7.080595]
[1773274210964,0.45429095,2054.9,2054.1,0.46422927]
[1773274211163,0.45429095,2054.9,2054.1,2.31722927]
[1773274211364,0.45429095,2054.7,2054.2,1.21701879]
[1773274212073,0.45429095,2054.7,2054.1,3.53428439]
[1773274212275,0.45429095,2054.7,2054.1,3.53538439]
[1773274212474,0.45429095,2055.0,2054.3,0.46422927]
[1773274212665,0.001,2054.7,2054.3,0.46422927]
[1773274212984,0.45429095,2055.0,2054.5,0.46422927]
[1773274213376,0.45429095,2055.0,2054.5,1.68102913]
[1773274213881,0.45429095,2055.2,2054.5,1.21679986]
[1773274214286,0.45429095,2055.2,2054.4,1.68109146]
[1773274214485,0.45429095,2055.2,2054.4,1.21686219]
[1773274214787,0.45429095,2055.2,2054.5,0.46422927]
[1773274215168,0.45429095,2055.2,2054.4,1.21686219]
[1773274215785,0.45429095,2055.1,2054.4,1.21686219]
[1773274216787,0.45429095,2055.1,2054.5,0.46422927]
[1773274216964,1.67070529,2055.3,2054.6,0.46422927]
[1773274217285,0.45429095,2055.3,2054.6,0.46422927]
[1773274217659,0.45429095,2055.3,2054.5,1.6480768]
[1773274217660,2.04127831,2055.4,2054.8,0.46422927]
[1773274217989,0.45429095,2055.3,2054.8,1.21665136]
[1773274218157,0.82496816,2055.4,2054.8,1.68088063]
[1773274218358,0.82496816,2055.4,2054.9,2.11230607]
[1773274218788,0.82496816,2055.4,2054.9,1.6480768]
[1773274218960,0.82496816,2055.4,2055.0,0.46422927]
[1773274219156,0.82496816,2055.4,2054.8,3.53988063]
[1773274219483,0.82496816,2055.4,2054.9,0.46422927]
[1773274219797,0.82496816,2055.4,2055.1,1.21648581]
[1773274219992,0.82496816,2055.4,2055.0,1.2165209]
[1773274220197,1.29314722,2055.4,2054.9,1.21657286]
[1773274220376,0.46817906,2055.3,2054.8,1.86]
[1773274222086,0.82496816,2055.4,2054.9,1.21660421]
[1773274222087,1.29314722,2055.4,2054.9,1.21660421]
[1773274222389,0.46817906,2055.3,2054.9,1.21660421]
[1773274222766,0.46817906,2055.3,2054.6,1.69008084]
[1773274222970,0.46817906,2055.3,2054.6,0.47334273]
[1773274223283,0.46817906,2055.3,2054.6,1.69009488]
[1773274223486,0.46817906,2055.3,2054.5,3.07779954]
[1773274223681,0.46817906,2055.3,2054.4,3.55121508]
[1773274224080,0.46817906,2055.1,2054.4,3.55121508]
[1773274225594,0.46817906,2055.1,2054.7,0.001]
[1773274228098,0.002,2055.2,2054.7,2.11854182]
[1773274228279,0.002,2055.2,2054.8,1.69000615]
[1773274230191,0.002,2055.2,2055.0,1.21654501]
[1773274230694,0.002,2055.2,2055.0,3.55188774]
[1773274231198,0.002,2055.2,2055.1,0.47334273]
[1773274232294,0.002,2055.2,2054.9,3.07859443]
[1773274232668,0.47017906,2055.2,2054.9,1.862]
[1773274232992,0.47017906,2055.2,2054.9,1.26272592]
[1773274233695,0.47017906,2055.2,2054.8,1.21662788]
[1773274233992,0.002,2055.2,2054.8,1.21662788]
[1773274234170,0.002,2055.2,2054.8,1.68997061]
[1773274236174,0.47017906,2055.2,2054.7,0.001]
[1773274238683,0.46817906,2055.3,2054.7,0.001]
[1773274240299,0.46817906,2055.3,2054.9,0.001]
[1773274240503,0.002,2055.0,2054.9,0.001]
[1773274243193,0.002,2055.0,2054.5,1.21783932]
[1773274243194,0.47712713,2055.0,2054.5,0.001]
[1773274244805,0.47712713,2055.0,2054.2,0.001]
[1773274245100,0.47712713,2055.0,2054.2,1.21797175]
[1773274245307,0.47412713,2054.8,2054.2,0.001]
[1773274245887,0.47412713,2054.7,2054.2,0.001]
[1773274246411,0.47412713,2054.4,2053.9,0.0011]
[1773274247203,1.69105212,2054.4,2053.9,0.0011]
[1773274249743,0.47412713,2054.3,2053.9,0.0011]
[1773274250205,0.47412713,2054.3,2053.9,0.0003]
[1773274252096,1.69109771,2054.3,2053.9,0.0003]
[1773274253205,0.45192786,2054.2,2053.9,0.0003]
[1773274254193,0.45192786,2054.0,2053.9,0.0003]
[1773274255519,0.001,2054.1,2053.9,0.0003]
[1773274260318,0.001,2054.1,2053.9,0.48658419]
[1773274260515,1.21673435,2054.7,2053.9,0.48658419]
[1773274260817,0.45192786,2054.6,2053.9,0.48658419]
[1773274261516,1.21684108,2054.5,2054.0,1.21713729]
[1773274261685,0.45192786,2054.5,2054.0,1.21713729]
[1773274261888,1.21682385,2054.6,2054.0,0.48628419]
[1773274262198,0.45192786,2054.5,2054.0,0.48628419]
[1773274263396,0.45192786,2054.4,2053.9,0.0003]
[1773274263600,1.6688874,2054.3,2053.9,0.0003]
[1773274264216,0.45192786,2054.2,2053.9,0.0003]
[1773274265713,1.66899175,2054.2,2053.9,0.0003]
[1773274266015,0.45192786,2054.2,2053.9,0.0003]
[1773274266316,0.45192786,2054.1,2053.9,0.0003]
[1773274267423,0.001,2054.0,2053.9,0.0003]
[1773274268095,0.45292786,2054.0,2053.9,0.0003]
[1773274270112,1.67006515,2054.0,2053.9,0.0003]
[1773274275735,1.21813729,2054.0,2053.9,0.0003]
[1773274278735,1.67006515,2054.0,2053.9,0.0003]
[1773274279109,0.45192786,2053.9,2053.3,0.48628419]
[1773274279314,0.45192786,2053.8,2053.3,0.48628419]
[1773274280111,0.45192786,2053.8,2053.6,0.0011]
[1773274280533,1.71179308,2053.7,2053.3,0.48628419]
[1773274281926,0.494478,2053.4,2052.8,0.4523775]
[1773274282616,0.494478,2053.4,2052.9,1.67016696]
[1773274284031,0.494478,2053.3,2052.8,1.67018327]
[1773274284533,0.494478,2053.3,2052.9,0.4523775]
[1773274284932,0.494478,2053.3,2052.9,1.67016616]
[1773274285520,0.494478,2053.3,2052.9,0.4523775]
[1773274285730,0.494478,2053.3,2052.9,1.67016335]
[1773274287322,0.494478,2053.7,2053.0,0.4523775]
[1773274287637,1.21729963,2053.8,2053.0,0.4523775]
[1773274287939,0.495478,2054.0,2053.2,0.4523775]
[1773274288245,0.001,2054.0,2053.6,0.4523775]
[1773274289335,1.71129641,2054.6,2053.9,0.4523775]
[1773274289537,0.494478,2054.6,2053.9,0.4523775]
[1773274289748,1.21672935,2054.7,2053.9,0.4523775]
[1773274290117,0.494478,2054.5,2053.9,0.4523775]
[1773274290812,0.494478,2054.7,2053.9,0.4523775]
[1773274291639,0.494478,2054.7,2053.6,4.86944297]
[1773274291640,1.21678185,2054.6,2054.0,1.21713729]
[1773274291840,1.21678185,2054.6,2054.1,0.4523775]
[1773274294546,0.494478,2054.5,2053.9,0.4523775]
[1773274295331,0.494478,2054.5,2053.7,0.4523775]
[1773274296228,1.21690031,2054.4,2053.8,1.21725581]
[1773274296534,1.21690031,2054.4,2053.9,0.4523775]
[1773274297528,1.71135647,2054.5,2053.9,0.4523775]
[1773274297724,0.494478,2054.4,2053.9,0.4523775]
[1773274298033,0.494478,2054.4,2053.7,0.4523775]
[1773274299841,0.494478,2054.4,2053.6,1.2173471]
[1773274299842,1.71142831,2054.4,2053.9,0.4523775]
[1773274301170,1.21685941,2054.5,2053.9,0.4523775]
[1773274301366,1.69845376,2054.5,2053.9,0.4523775]
[1773274302030,1.69835916,2054.7,2054.0,0.46514815]
[1773274303656,0.48159435,2054.6,2054.0,0.46514815]
[1773274304159,1.69843057,2054.6,2054.0,1.68226833]
[1773274304664,0.48159435,2054.6,2054.1,0.46514815]
[1773274304833,1.69841555,2054.6,2054.1,0.46514815]
[1773274305563,1.69841555,2054.6,2054.1,0.46624815]
[1773274305754,0.001,2054.5,2054.1,0.46624815]
[1773274307076,0.48259435,2054.5,2054.1,0.46624815]
[1773274308374,0.48259435,2054.5,2054.1,1.68332597]
[1773274308570,1.69943822,2054.5,2054.1,0.46624815]
[1773274309829,1.69943822,2054.5,2053.9,4.86983883]
[1773274309830,1.1402253,2054.3,2053.9,0.46624815]
[1773274309964,0.48159435,2054.2,2053.9,0.47091774]
[1773274310370,1.67987631,2054.4,2053.9,0.47091774]
[1773274310551,1.67987631,2054.4,2054.0,0.46981774]
[1773274310552,0.46293441,2054.4,2054.0,0.46981774]
[1773274310752,1.87648704,2054.5,2054.0,0.46981774]
[1773274310753,0.65963095,2054.5,2054.0,0.46981774]
[1773274311479,0.001,2054.5,2054.0,0.46981774]
[1773274311897,1.12256536,2054.5,2054.0,0.46981774]
[1773274312384,1.12256536,2054.5,2054.1,0.46981774]
[1773274313890,0.46393441,2054.5,2054.1,0.46981774]
[1773274314587,0.001,2054.5,2054.2,0.46981774]
[1773274316600,0.001,2054.5,2054.2,1.68683189]
[1773274316975,0.001,2054.5,2054.2,1.21701415]
[1773274317178,0.001,2054.5,2054.3,0.46981774]
[1773274317579,0.001,2054.5,2054.1,0.46981774]
[1773274317580,0.46393441,2054.5,2054.1,0.46981774]
[1773274317788,0.46393441,2054.5,2054.0,0.46981774]
[1773274318500,0.46393441,2054.5,2054.1,0.0011]
[1773274318903,0.001,2054.3,2054.1,0.0011]
[1773274319982,0.46393441,2054.3,2054.1,0.0011]
[1773274320491,0.46393441,2054.3,2053.9,0.0011]
[1773274320989,0.46293441,2054.2,2053.9,0.0011]
[1773274322790,1.21796133,2054.3,2053.9,0.47091774]
[1773274322992,1.68089574,2054.3,2053.9,0.47091774]
[1773274323317,0.46293441,2054.2,2053.9,0.0011]
[1773274323690,0.46293441,2054.1,2053.7,0.46981774]
[1773274323892,0.46293441,2054.1,2053.6,0.47091774]
[1773274324892,1.68003604,2054.1,2053.6,0.47091774]
[1773274325110,1.68003604,2054.1,2053.6,1.68827405]
[1773274325302,1.68003604,2054.1,2053.6,1.21845631]
[1773274325602,1.68003604,2054.1,2053.7,0.46981774]
[1773274325794,0.46293441,2054.1,2053.7,0.46981774]
[1773274326190,1.68001891,2054.1,2053.7,0.46981774]
[1773274327409,0.46293441,2054.1,2053.7,0.46981774]
[1773274327586,1.68001776,2054.1,2053.7,0.46981774]
[1773274327788,2.33858646,2054.2,2053.8,0.46981774]
[1773274328314,0.46293441,2054.2,2053.8,0.46981774]
[1773274329412,0.46293441,2054.2,2053.9,0.46981774]
[1773274329710,0.001,2054.3,2053.9,0.46981774]
[1773274331501,0.001,2054.3,2054.1,0.46981774]
[1773274333616,0.001,2054.3,2054.1,1.6868942]
[1773274333819,0.46293441,2054.9,2054.4,0.46981774]
[1773274333989,0.46293441,2054.7,2054.2,0.46981774]
[1773274335618,1.21668448,2054.8,2054.4,0.46981774]
[1773274336117,1.67961889,2054.8,2054.4,0.46981774]
[1773274336325,0.65863095,2055.2,2054.4,0.46981774]
[1773274336621,0.46293441,2054.9,2054.4,0.46981774]
[1773274337621,1.67956865,2054.9,2054.5,0.46981774]
[1773274342130,0.47694131,2054.8,2054.5,0.46981774]
[1773274342929,0.47694131,2054.8,2054.2,0.45736299]
[1773274344324,1.69360473,2054.8,2054.7,0.001]
[1773274344925,0.47694131,2054.7,2054.5,0.001]